fUSD/lending_fUSD_20260522
["ID","MTS","AMOUNT","RATE_DAILY","PERIOD"]
[422780645,1779382240000,-169.89,0.00022603,2]
[422780607,1779382240000,-189.368648,0.00022148,14]
[422780643,1779382240000,-2198.15,0.00022466,2]
[422780712,1779382240000,-433.5,0.00024174,2]
[422780609,1779382240000,-266.047516,0.00022148,14]
[422780612,1779382240000,-5000.0,0.00022233,2]
[422780605,1779382240000,-196338.0,0.000221,2]
[422780603,1779382240000,-443.0,0.00022,2]
[422780614,1779382240000,-150.0,0.00022264,2]
[422780616,1779382240000,-150.0,0.00022264,2]
[422780619,1779382240000,-245.7860907,0.00022264,2]
[422780623,1779382240000,-500.0,0.00022264,2]
[422780625,1779382240000,-500.0,0.00022264,2]
[422780627,1779382240000,-500.0,0.00022264,2]
[422780628,1779382240000,-500.0,0.00022264,2]
[422780644,1779382240000,-500.0,0.00022487,2]
[422780631,1779382240000,-500.0,0.00022264,2]
[422780634,1779382240000,-500.0,0.00022264,2]
[422780635,1779382240000,-629.30965523,0.00022264,2]
[422780629,1779382240000,-500.0,0.00022264,2]
[422780632,1779382240000,-500.0,0.00022264,2]
[422780633,1779382240000,-292.42327193,0.00022264,2]
[422780636,1779382240000,-150.0,0.00022264,2]
[422780637,1779382240000,-150.0,0.00022264,2]
[422780638,1779382240000,-150.0,0.00022264,2]
[422780639,1779382240000,-150.0,0.00022264,2]
[422780642,1779382240000,-2055.35,0.00022466,2]
[422780640,1779382240000,-198.04231423,0.00022264,2]
[422780641,1779382240000,-2572.7,0.00022353,2]
[422780630,1779382240000,-500.0,0.00022264,2]
[422780702,1779382240000,-2000.0,0.00024,2]
[422780621,1779382240000,-500.0,0.00022264,2]
[422780704,1779382240000,-2000.0,0.00024,2]
[422780762,1779382240000,-413.96191023,0.00025,2]
[422780755,1779382240000,-500.0,0.00024658,2]
[422780750,1779382240000,-500.0,0.00024658,2]
[422780760,1779382240000,-556.27091604,0.00025,2]
[422780757,1779382240000,-521.40999983,0.00024658,2]
[422780759,1779382240000,-762.27901125,0.00025,2]
[422780753,1779382240000,-500.0,0.00024658,2]
[422780754,1779382240000,-500.0,0.00024658,2]
[422780752,1779382240000,-500.0,0.00024658,2]
[422780756,1779382240000,-500.0,0.00024658,2]
[422780758,1779382240000,-180.0,0.00024691,2]
[422780764,1779382240000,-1258.67,0.00025,7]
[422780751,1779382240000,-500.0,0.00024658,2]
[422780769,1779382240000,-317.0,0.00025315,2]
[422780766,1779382240000,-578.20924308,0.00025198,2]
[422780773,1779382240000,-1450.0,0.00025559,2]
[422780774,1779382240000,-1450.0,0.00025559,2]
[422780763,1779382240000,-162.0,0.00025,2]
[422780765,1779382240000,-444.68726952,0.00025,2]
[422780772,1779382240000,-1450.0,0.00025559,2]
[422780767,1779382240000,-1328.27659266,0.00025198,2]
[422780771,1779382240000,-1450.0,0.00025559,2]
[422780770,1779382240000,-1996.96678921,0.00025397,2]
[422780777,1779382240000,-1450.0,0.00025559,2]
[422780776,1779382240000,-1450.0,0.00025559,2]
[422780714,1779382240000,-6131.18,0.00024174,2]
[422780775,1779382240000,-1450.0,0.00025559,2]
[422780761,1779382240000,-377.45737762,0.00025,2]
[422780768,1779382240000,-670.58624095,0.00025198,2]
[422780746,1779382240000,-500.0,0.00024658,2]
[422780742,1779382240000,-500.0,0.00024658,2]
[422780718,1779382240000,-927.0,0.00024322,2]
[422780716,1779382240000,-3545.0,0.00024322,2]
[422780720,1779382240000,-625.0,0.00024322,2]
[422780706,1779382240000,-443.0,0.00024,2]
[422780721,1779382240000,-1354.0,0.00024322,2]
[422780724,1779382240000,-1271.0,0.00024322,2]
[422780725,1779382240000,-1101.197,0.00024322,2]
[422780730,1779382240000,-1013.96,0.000246,14]
[422780728,1779382240000,-2572.7,0.00024324,2]
[422780729,1779382240000,-500.0,0.00024557,2]
[422780727,1779382240000,-3634.0,0.00024322,2]
[422780732,1779382240000,-400.0,0.0002465,2]
[422780731,1779382240000,-4155.66500241,0.0002465,2]
[422780733,1779382240000,-444.33499759,0.0002465,2]
[422780749,1779382240000,-500.0,0.00024658,2]
[422780743,1779382240000,-500.0,0.00024658,2]
[422780740,1779382240000,-500.0,0.00024658,2]
[422780744,1779382240000,-500.0,0.00024658,2]
[422780748,1779382240000,-500.0,0.00024658,2]
[422780747,1779382240000,-500.0,0.00024658,2]
[422780708,1779382240000,-172.13565153,0.00024136,3]
[422780739,1779382240000,-1156.95,0.00024658,2]
[422780736,1779382240000,-327.93870846,0.00024658,2]
[422780735,1779382240000,-366.40453663,0.00024658,2]
[422780734,1779382240000,-163.64,0.00024658,8]
[422780737,1779382240000,-305.65675491,0.00024658,2]
[422780816,1779382241000,-1428.38747117,0.00026294,2]
[422780822,1779382241000,-5000.0,0.0002698,2]
[422780823,1779382241000,-215.23956962,0.00027,3]
[422780819,1779382241000,-332.8277982,0.00026397,2]
[422780821,1779382241000,-17226.93,0.000269,2]
[422780813,1779382241000,-2000.0,0.00026221,2]
[422780814,1779382241000,-2000.0,0.00026221,2]
[422780818,1779382241000,-1996.96678921,0.00026397,2]
[422780815,1779382241000,-2128.0,0.00026221,2]
[422780812,1779382241000,-2000.0,0.00026221,2]
[422780810,1779382241000,-2000.0,0.00026221,2]
[422780817,1779382241000,-2572.7,0.00026296,2]
[422780806,1779382241000,-770.0,0.00025926,2]
[422780829,1779382241000,-1219.497,0.00027322,2]
[422780834,1779382241000,-500.0,0.00027397,2]
[422780825,1779382241000,-3545.0,0.00027322,2]
[422780833,1779382241000,-1331.3111928,0.00027397,7]
[422780831,1779382241000,-1536.04360648,0.0002739,2]
[422780827,1779382241000,-625.0,0.00027322,2]
[422780832,1779382241000,-500.0,0.00027396,2]
[422780826,1779382241000,-927.0,0.00027322,2]
[422780835,1779382241000,-500.0,0.00027397,2]
[422780836,1779382241000,-500.0,0.00027397,2]
[422780824,1779382241000,-159.99701366,0.00027123,20]
[422780830,1779382241000,-3634.0,0.00027322,2]
[422780828,1779382241000,-1354.0,0.00027322,2]
[422780808,1779382241000,-215.23956962,0.00026,7]
[422780820,1779382241000,-1481.2378076,0.00026842,2]
[422780807,1779382241000,-2000.0,0.00025997,7]
[422780782,1779382241000,-5000.0,0.0002567,2]
[422780805,1779382241000,-1250.0,0.00025926,2]
[422780787,1779382241000,-6131.18,0.00025786,2]
[422780788,1779382241000,-499.99,0.00025786,2]
[422780837,1779382241000,-500.0,0.00027397,2]
[422780785,1779382241000,-913.62,0.00025786,2]
[422780780,1779382241000,-1382.0,0.00025559,2]
[422780778,1779382241000,-1450.0,0.00025559,2]
[422780784,1779382241000,-206.65,0.00025752,2]
[422780781,1779382241000,-200.0,0.000256,2]
[422780786,1779382241000,-433.5,0.00025786,2]
[422780779,1779382241000,-1450.0,0.00025559,2]
[422780783,1779382241000,-1377.42282658,0.00025746,2]
[422780789,1779382241000,-24999.99,0.00025786,2]
[422780791,1779382241000,-7104.21,0.00025786,10]
[422780809,1779382241000,-550.0,0.00026,2]
[422780790,1779382241000,-9999.99,0.00025786,2]
[422780792,1779382241000,-6223.25,0.00025786,2]
[422780793,1779382241000,-299.99,0.00025786,12]
[422780796,1779382241000,-1000.0,0.00025786,2]
[422780794,1779382241000,-150.99,0.00025786,2]
[422780797,1779382241000,-1250.0,0.00025926,2]
[422780799,1779382241000,-1250.0,0.00025926,2]
[422780798,1779382241000,-1250.0,0.00025926,2]
[422780801,1779382241000,-1250.0,0.00025926,2]
[422780804,1779382241000,-1250.0,0.00025926,2]
[422780811,1779382241000,-2000.0,0.00026221,2]
[422780802,1779382241000,-1250.0,0.00025926,2]
[422780803,1779382241000,-1250.0,0.00025926,2]
[422780800,1779382241000,-1250.0,0.00025926,2]
[422780795,1779382241000,-851.62,0.00025786,2]
[422780840,1779382241000,-500.0,0.00027397,2]
[422780852,1779382241000,-163.64,0.00027397,31]
[422780848,1779382241000,-500.0,0.00027397,2]
[422780868,1779382241000,-583.8,0.0002755,2]
[422780865,1779382241000,-1249.92,0.0002755,2]
[422780876,1779382241000,-583.8,0.0002758,7]
[422780878,1779382241000,-1167.69,0.0002758,7]
[422780877,1779382241000,-1251.94,0.0002758,7]
[422780879,1779382241000,-281.09,0.0002758,7]
[422780880,1779382241000,-200.0,0.000276,2]
[422780881,1779382241000,-405.193774,0.00027611,7]
[422780882,1779382241000,-405.193774,0.00027611,7]
[422780888,1779382241000,-280.31,0.00027611,30]
[422780839,1779382241000,-500.0,0.00027397,2]
[422780883,1779382241000,-405.193774,0.00027611,7]
[422780885,1779382241000,-585.56,0.00027611,30]
[422780884,1779382241000,-405.193774,0.00027611,7]
[422780887,1779382241000,-1168.2,0.00027611,30]
[422780890,1779382241000,-1251.94,0.00027611,30]
[422780889,1779382241000,-583.8,0.00027611,30]
[422780891,1779382241000,-1167.69,0.00027611,30]
[422780893,1779382241000,-585.56,0.00027641,2]
[422780894,1779382241000,-1249.92,0.00027641,2]
[422780897,1779382241000,-583.8,0.00027641,2]
[422780898,1779382241000,-1251.94,0.00027641,2]
[422780899,1779382241000,-1167.69,0.00027641,2]
[422780900,1779382241000,-281.09,0.00027641,2]
[422780895,1779382241000,-1168.2,0.00027641,2]
[422780896,1779382241000,-280.31,0.00027641,2]
[422780892,1779382241000,-281.09,0.00027611,30]
[422780866,1779382241000,-1168.2,0.0002755,2]
[422780874,1779382241000,-1168.2,0.0002758,7]
[422780886,1779382241000,-1249.92,0.00027611,30]
[422780869,1779382241000,-1251.94,0.0002755,2]
[422780870,1779382241000,-1167.69,0.0002755,2]
[422780846,1779382241000,-500.0,0.00027397,2]
[422780838,1779382241000,-500.0,0.00027397,2]
[422780847,1779382241000,-500.0,0.00027397,2]
[422780845,1779382241000,-500.0,0.00027397,2]
[422780849,1779382241000,-550.63598377,0.00027397,2]
[422780842,1779382241000,-500.0,0.00027397,2]
[422780843,1779382241000,-500.0,0.00027397,2]
[422780844,1779382241000,-500.0,0.00027397,2]
[422780850,1779382241000,-150.0,0.00027397,2]
[422780857,1779382241000,-1331.3111928,0.00027397,7]
[422780851,1779382241000,-1500.0,0.00027397,2]
[422780853,1779382241000,-300.0,0.00027397,2]
[422780855,1779382241000,-1156.95,0.00027397,2]
[422780841,1779382241000,-500.0,0.00027397,2]
[422780858,1779382241000,-151.78567293,0.00027397,3]
[422780854,1779382241000,-1466.16,0.00027397,2]
[422780867,1779382241000,-280.31,0.0002755,2]
[422780873,1779382241000,-1249.92,0.0002758,7]
[422780863,1779382241000,-1000.0,0.00027421,13]
[422780872,1779382241000,-585.56,0.0002758,7]
[422780871,1779382241000,-281.09,0.0002755,2]
[422780875,1779382241000,-280.31,0.0002758,7]
[422780859,1779382241000,-9375.45,0.000274,14]
[422780861,1779382241000,-1725.42,0.000274,7]
[422780860,1779382241000,-1840.06,0.000274,7]
[422780862,1779382241000,-1258.67,0.000274,7]
[422780856,1779382241000,-21321.61,0.00027397,10]
[422780864,1779382241000,-585.56,0.0002755,2]
[422780950,1779382242000,-281.09,0.00027824,2]
[422780949,1779382242000,-1167.69,0.00027824,2]
[422780939,1779382242000,-1251.94,0.00027794,30]
[422780936,1779382242000,-1168.2,0.00027794,30]
[422780935,1779382242000,-1249.92,0.00027794,30]
[422780931,1779382242000,-1251.94,0.00027763,7]
[422780932,1779382242000,-1167.69,0.00027763,7]
[422780933,1779382242000,-281.09,0.00027763,7]
[422780929,1779382242000,-280.31,0.00027763,7]
[422780942,1779382242000,-500.0,0.000278,7]
[422780956,1779382242000,-1251.94,0.00027855,7]
[422780941,1779382242000,-281.09,0.00027794,30]
[422780948,1779382242000,-1251.94,0.00027824,2]
[422780945,1779382242000,-1168.2,0.00027824,2]
[422780938,1779382242000,-583.8,0.00027794,30]
[422780943,1779382242000,-585.56,0.00027824,2]
[422780947,1779382242000,-583.8,0.00027824,2]
[422780946,1779382242000,-280.31,0.00027824,2]
[422780951,1779382242000,-585.56,0.00027855,7]
[422780953,1779382242000,-1168.2,0.00027855,7]
[422780957,1779382242000,-1167.69,0.00027855,7]
[422780952,1779382242000,-1249.92,0.00027855,7]
[422780955,1779382242000,-583.8,0.00027855,7]
[422780954,1779382242000,-280.31,0.00027855,7]
[422780937,1779382242000,-280.31,0.00027794,30]
[422780944,1779382242000,-1249.92,0.00027824,2]
[422780930,1779382242000,-583.8,0.00027763,7]
[422780934,1779382242000,-585.56,0.00027794,30]
[422780927,1779382242000,-1249.92,0.00027763,7]
[422780958,1779382242000,-281.09,0.00027855,7]
[422780901,1779382242000,-6956.58405783,0.0002767,2]
[422780903,1779382242000,-1249.92,0.00027672,7]
[422780912,1779382242000,-1168.2,0.00027702,30]
[422780905,1779382242000,-280.31,0.00027672,7]
[422780907,1779382242000,-1251.94,0.00027672,7]
[422780904,1779382242000,-1168.2,0.00027672,7]
[422780902,1779382242000,-585.56,0.00027672,7]
[422780906,1779382242000,-583.8,0.00027672,7]
[422780913,1779382242000,-280.31,0.00027702,30]
[422780909,1779382242000,-281.09,0.00027672,7]
[422780908,1779382242000,-1167.69,0.00027672,7]
[422780911,1779382242000,-1249.92,0.00027702,30]
[422780910,1779382242000,-585.56,0.00027702,30]
[422780915,1779382242000,-1251.94,0.00027702,30]
[422780916,1779382242000,-1167.69,0.00027702,30]
[422780920,1779382242000,-1168.2,0.00027733,2]
[422780919,1779382242000,-1249.92,0.00027733,2]
[422780914,1779382242000,-583.8,0.00027702,30]
[422780921,1779382242000,-280.31,0.00027733,2]
[422780918,1779382242000,-585.56,0.00027733,2]
[422780917,1779382242000,-281.09,0.00027702,30]
[422780924,1779382242000,-1167.69,0.00027733,2]
[422780922,1779382242000,-583.8,0.00027733,2]
[422780923,1779382242000,-1251.94,0.00027733,2]
[422780925,1779382242000,-281.09,0.00027733,2]
[422780928,1779382242000,-1168.2,0.00027763,7]
[422780926,1779382242000,-585.56,0.00027763,7]
[422780961,1779382242000,-1168.2,0.00027885,30]
[422780940,1779382242000,-1167.69,0.00027794,30]
[422780960,1779382242000,-1249.92,0.00027885,30]
[422780990,1779382242000,-576.240632,0.00027977,7]
[422780992,1779382242000,-218.06163,0.00027977,7]
[422780994,1779382242000,-218.06163,0.00027977,7]
[422780993,1779382242000,-218.06163,0.00027977,7]
[422780996,1779382242000,-585.56,0.00027977,30]
[422780995,1779382242000,-218.06163,0.00027977,7]
[422780999,1779382242000,-280.31,0.00027977,30]
[422781001,1779382242000,-583.8,0.00027977,30]
[422781010,1779382242000,-600.0,0.00028,2]
[422781003,1779382242000,-1251.94,0.00027977,30]
[422781011,1779382242000,-585.56,0.00028007,2]
[422781008,1779382242000,-215.23956962,0.00028,30]
[422781007,1779382242000,-1725.42,0.00028,7]
[422781005,1779382242000,-281.09,0.00027977,30]
[422781006,1779382242000,-2000.0,0.00027997,7]
[422781009,1779382242000,-215.23956962,0.00028,7]
[422781004,1779382242000,-1167.69,0.00027977,30]
[422781013,1779382242000,-1249.92,0.00028007,2]
[422781026,1779382242000,-1249.92,0.00028038,7]
[422781029,1779382242000,-1168.2,0.00028038,7]
[422781032,1779382242000,-280.31,0.00028038,7]
[422781015,1779382242000,-1168.2,0.00028007,2]
[422781016,1779382242000,-280.31,0.00028007,2]
[422781019,1779382242000,-1167.69,0.00028007,2]
[422781020,1779382242000,-281.09,0.00028007,2]
[422781018,1779382242000,-1251.94,0.00028007,2]
[422780959,1779382242000,-585.56,0.00027885,30]
[422780991,1779382242000,-576.240632,0.00027977,7]
[422780988,1779382242000,-576.240632,0.00027977,7]
[422781023,1779382242000,-585.56,0.00028038,7]
[422780997,1779382242000,-1249.92,0.00027977,30]
[422780989,1779382242000,-576.240632,0.00027977,7]
[422780963,1779382242000,-583.8,0.00027885,30]
[422780973,1779382242000,-1251.94,0.00027916,2]
[422780974,1779382242000,-1167.69,0.00027916,2]
[422780964,1779382242000,-1251.94,0.00027885,30]
[422780968,1779382242000,-585.56,0.00027916,2]
[422780966,1779382242000,-1167.69,0.00027885,30]
[422780970,1779382242000,-1168.2,0.00027916,2]
[422780972,1779382242000,-583.8,0.00027916,2]
[422780967,1779382242000,-281.09,0.00027885,30]
[422780971,1779382242000,-280.31,0.00027916,2]
[422780969,1779382242000,-1249.92,0.00027916,2]
[422780975,1779382242000,-281.09,0.00027916,2]
[422780962,1779382242000,-280.31,0.00027885,30]
[422780979,1779382242000,-1592.87721992,0.00027938,2]
[422780986,1779382242000,-1167.69,0.00027946,7]
[422781017,1779382242000,-583.8,0.00028007,2]
[422780998,1779382242000,-1168.2,0.00027977,30]
[422780987,1779382242000,-281.09,0.00027946,7]
[422780982,1779382242000,-1168.2,0.00027946,7]
[422780981,1779382242000,-1249.92,0.00027946,7]
[422780984,1779382242000,-583.8,0.00027946,7]
[422780985,1779382242000,-1251.94,0.00027946,7]
[422780980,1779382242000,-585.56,0.00027946,7]
[422780978,1779382242000,-695.39793187,0.00027937,2]
[422780977,1779382242000,-599.60298507,0.00027937,2]
[422780976,1779382242000,-150.0,0.00027917,30]
[422780983,1779382242000,-280.31,0.00027946,7]
[422781058,1779382243000,-585.71,0.0002813,7]
[422781064,1779382243000,-1167.75,0.0002813,7]
[422781056,1779382243000,-1840.06,0.000281,7]
[422781059,1779382243000,-1250.03,0.0002813,7]
[422781061,1779382243000,-280.45,0.0002813,7]
[422781062,1779382243000,-583.92,0.0002813,7]
[422781063,1779382243000,-1252.02,0.0002813,7]
[422781068,1779382243000,-150.0,0.00028192,2]
[422781070,1779382243000,-2572.7,0.00028267,2]
[422781066,1779382243000,-1253.0,0.00028159,5]
[422781067,1779382243000,-999.0,0.00028159,5]
[422781072,1779382243000,-200.0,0.0002831,2]
[422781065,1779382243000,-281.25,0.0002813,7]
[422781071,1779382243000,-200.0,0.0002831,2]
[422781074,1779382243000,-151.0,0.00028408,7]
[422781073,1779382243000,-200.0,0.0002831,2]
[422781055,1779382243000,-281.09,0.00028099,2]
[422781076,1779382243000,-151.0,0.00028408,7]
[422781069,1779382243000,-1000.0,0.00028205,7]
[422781054,1779382243000,-1167.69,0.00028099,2]
[422781038,1779382243000,-1167.69,0.00028038,7]
[422781057,1779382243000,-1166.15,0.0002813,7]
[422781081,1779382243000,-1651.81367706,0.00028486,2]
[422781036,1779382243000,-583.8,0.00028038,7]
[422781037,1779382243000,-1251.94,0.00028038,7]
[422781039,1779382243000,-281.09,0.00028038,7]
[422781042,1779382243000,-1168.2,0.00028068,30]
[422781043,1779382243000,-280.31,0.00028068,30]
[422781041,1779382243000,-1249.92,0.00028068,30]
[422781040,1779382243000,-585.56,0.00028068,30]
[422781052,1779382243000,-583.8,0.00028099,2]
[422781045,1779382243000,-1251.94,0.00028068,30]
[422781046,1779382243000,-1167.69,0.00028068,30]
[422781047,1779382243000,-281.09,0.00028068,30]
[422781048,1779382243000,-585.56,0.00028099,2]
[422781050,1779382243000,-1168.2,0.00028099,2]
[422781060,1779382243000,-1168.29,0.0002813,7]
[422781049,1779382243000,-1249.92,0.00028099,2]
[422781051,1779382243000,-280.31,0.00028099,2]
[422781053,1779382243000,-1251.94,0.00028099,2]
[422781044,1779382243000,-583.8,0.00028068,30]
[422781082,1779382243000,-169.89,0.00028493,2]
[422781087,1779382243000,-444.26731633,0.000286,14]
[422781083,1779382243000,-765.5600717,0.000286,14]
[422781102,1779382243000,-204.17685596,0.00028689,7]
[422781110,1779382243000,-404.36699173,0.00028689,7]
[422781103,1779382243000,-165.58248762,0.00028689,7]
[422781109,1779382243000,-151.28271641,0.00028689,7]
[422781107,1779382243000,-167.6195988,0.00028689,7]
[422781105,1779382243000,-157.43669315,0.00028689,7]
[422781108,1779382243000,-328.25143641,0.00028689,7]
[422781112,1779382243000,-156.56195781,0.00028689,7]
[422781104,1779382243000,-192.15370927,0.00028689,7]
[422781122,1779382243000,-192.50261787,0.0002869,7]
[422781116,1779382243000,-150.68636045,0.00028689,7]
[422781114,1779382243000,-158.06644343,0.00028689,7]
[422781117,1779382243000,-261.74691089,0.00028689,7]
[422781118,1779382243000,-158.38457482,0.00028689,7]
[422781115,1779382243000,-196.82097588,0.00028689,7]
[422781111,1779382243000,-400.88584939,0.00028689,7]
[422781120,1779382243000,-172.70886117,0.0002869,7]
[422781077,1779382243000,-200.0,0.0002848,2]
[422781113,1779382243000,-227.65052243,0.00028689,7]
[422781101,1779382243000,-152.10594791,0.00028689,7]
[422781106,1779382243000,-188.83859178,0.00028689,5]
[422781099,1779382243000,-162.21565604,0.00028689,7]
[422781100,1779382243000,-154.33024213,0.00028689,7]
[422781078,1779382243000,-200.0,0.0002848,2]
[422781079,1779382243000,-200.0,0.0002848,2]
[422781080,1779382243000,-309.36316626,0.0002848,2]
[422781084,1779382243000,-1930.91833696,0.000286,14]
[422781086,1779382243000,-1531.25027251,0.000286,14]
[422781088,1779382243000,-4073.02696882,0.000286,14]
[422781085,1779382243000,-630.42703368,0.000286,14]
[422781089,1779382243000,-151.0,0.000286,7]
[422781075,1779382243000,-151.0,0.00028408,7]
[422781098,1779382243000,-239.17386259,0.00028689,7]
[422781094,1779382243000,-167.37522102,0.00028689,7]
[422781093,1779382243000,-168.90159772,0.00028689,7]
[422781091,1779382243000,-155.907713,0.000286,7]
[422781092,1779382243000,-173.22827048,0.00028689,7]
[422781095,1779382243000,-201.2656737,0.00028689,7]
[422781097,1779382243000,-188.03726016,0.00028689,7]
[422781096,1779382243000,-170.14458791,0.00028689,2]
[422781090,1779382243000,-151.0,0.000286,7]
[422781153,1779382244000,-1005.94,0.00028835,30]
[422781154,1779382244000,-1005.94,0.00028852,30]
[422781151,1779382244000,-295.54199851,0.00028802,7]
[422781142,1779382244000,-206.34983204,0.00028798,7]
[422781152,1779382244000,-1005.94,0.00028817,30]
[422781148,1779382244000,-203.31457942,0.00028802,7]
[422781156,1779382244000,-1005.94,0.00028887,30]
[422781143,1779382244000,-159.9612849,0.00028798,7]
[422781150,1779382244000,-167.56429563,0.00028802,7]
[422781155,1779382244000,-1005.94,0.0002887,30]
[422781159,1779382244000,-1005.94,0.00028922,30]
[422781157,1779382244000,-1840.06,0.000289,7]
[422781158,1779382244000,-1005.94,0.00028904,30]
[422781163,1779382244000,-177.08328508,0.00028971,2]
[422781160,1779382244000,-1005.94,0.00028939,30]
[422781162,1779382244000,-1005.94,0.00028957,30]
[422781161,1779382244000,-2330.0,0.00028944,3]
[422781166,1779382244000,-291.0,0.00028999,120]
[422781171,1779382244000,-150.0,0.00028999,120]
[422781164,1779382244000,-1005.94,0.00028974,30]
[422781145,1779382244000,-1258.67,0.000288,7]
[422781123,1779382244000,-205.5911666,0.0002869,7]
[422781146,1779382244000,-174.73548496,0.00028802,7]
[422781167,1779382244000,-150.0,0.00028999,120]
[422781124,1779382244000,-157.2545926,0.0002869,7]
[422781125,1779382244000,-207.64669467,0.0002869,7]
[422781126,1779382244000,-1725.42,0.000287,7]
[422781128,1779382244000,-151.3728442,0.00028767,5]
[422781129,1779382244000,-152.37040666,0.00028798,7]
[422781139,1779382244000,-161.84359049,0.00028798,7]
[422781133,1779382244000,-180.87510233,0.00028798,7]
[422781127,1779382244000,-150.0,0.00028767,2]
[422781137,1779382244000,-224.89873652,0.00028798,7]
[422781131,1779382244000,-203.32761261,0.00028798,7]
[422781132,1779382244000,-174.94699471,0.00028798,7]
[422781140,1779382244000,-164.04175483,0.00028798,7]
[422781134,1779382244000,-165.11245998,0.00028798,7]
[422781130,1779382244000,-166.33844984,0.00028798,7]
[422781138,1779382244000,-176.28488068,0.00028798,7]
[422781135,1779382244000,-160.85025472,0.00028798,7]
[422781141,1779382244000,-161.22806577,0.00028798,7]
[422781149,1779382244000,-221.27088712,0.00028802,7]
[422781147,1779382244000,-196.11283008,0.00028802,7]
[422781165,1779382244000,-1005.94,0.00028991,30]
[422781144,1779382244000,-1005.94,0.000288,30]
[422781169,1779382244000,-150.0,0.00028999,120]
[422781191,1779382244000,-450.0,0.00029,30]
[422781195,1779382244000,-531.84,0.00029,8]
[422781194,1779382244000,-531.84,0.00029,8]
[422781196,1779382244000,-531.84,0.00029,9]
[422781193,1779382244000,-200.31282699,0.00029,2]
[422781198,1779382244000,-156.0,0.00029,2]
[422781200,1779382244000,-156.0,0.00029,2]
[422781201,1779382244000,-156.0,0.00029,2]
[422781199,1779382244000,-156.0,0.00029,2]
[422781203,1779382244000,-156.0,0.00029,2]
[422781205,1779382244000,-156.0,0.00029,2]
[422781210,1779382244000,-3996.97900886,0.00029,2]
[422781209,1779382244000,-2090.40897658,0.00029,2]
[422781207,1779382244000,-525.56757214,0.00029,2]
[422781208,1779382244000,-11329.61201456,0.00029,2]
[422781211,1779382244000,-4755.02099098,0.00029,2]
[422781204,1779382244000,-156.0,0.00029,2]
[422781212,1779382244000,-1000.0,0.00019931,2]
[422781176,1779382244000,-690.28,0.00029,2]
[422781197,1779382244000,-531.84,0.00029,10]
[422781202,1779382244000,-156.0,0.00029,2]
[422781206,1779382244000,-156.0,0.00029,2]
[422781190,1779382244000,-450.0,0.00029,30]
[422781168,1779382244000,-181.0,0.00028999,120]
[422781192,1779382244000,-373.0,0.00029,30]
[422781172,1779382244000,-236.0,0.00028999,120]
[422781175,1779382244000,-2472.90968731,0.00029,2]
[422781174,1779382244000,-2384.7147583,0.00029,2]
[422781173,1779382244000,-500.0,0.00028999,120]
[422781177,1779382244000,-690.28,0.00029,2]
[422781179,1779382244000,-1011.38,0.00029,2]
[422781182,1779382244000,-690.27,0.00029,2]
[422781180,1779382244000,-742.60594521,0.00029,2]
[422781170,1779382244000,-150.0,0.00028999,120]
[422781181,1779382244000,-200.0,0.00029,2]
[422781186,1779382244000,-1469.14041385,0.00029,2]
[422781178,1779382244000,-2227.19931053,0.00029,2]